[Event "4th Tata Steel India Blitz Open 2022"]
[Site "Kolkota"]
[Date "2022.12.04"]
[Round "15.3"]
[White "So, Wesley"]
[Black "Nihal Sarin"]
[Result "1-0"]
[ECO "B06"]
[WhiteElo "2760"]
[BlackElo "2670"]
[Annotator "TA"]
[PlyCount "133"]
[EventDate "2022.11.29"]
[EventType "tourn"]
[EventCountry "IND"]
[SourceTitle "playchess.com"]
[Source "ChessBase"]
[SourceQuality "1"]
[TimeControl "180+2"]

{[%evp 11,133,28,64,32,37,1,-6,-4,20,18,45,38,48,8,3,-8,0,0,-8,-7,-14,-26,0,-31,14,21,18,14,31,17,42,36,41,41,45,46,78,60,42,56,97,93,72,59,81,-40,194,194,193,193,561,540,516,116,23,0,502,0,21,19,22,28,441,319,322,320,427,325,437,405,419,0,345,0,437,417,438,415,415,353,587,547,557,545,511,520,527,513,739,739,737,520,504,487,412,0,11504,1150,29982,29983,29985,29986,29989,29977,29977,29978,29978,29979,29983,29984,29984,29979,29982,29974,29981,29982,29984,29985,29985,29986,29986,29987,29987,29988]} 1. e4 {[%emt 0:00:02]} g6 {[%emt 0:00:01]} 2. d4 {[%emt 0:00:01]} Bg7 {[%emt 0:00:01]} 3. Nc3 {[%emt 0:00:01]} d6 {[%emt 0:00:01]} 4. Be3 a6 5. Qd2 {[%emt 0:00:03]} Nd7 {[%emt 0:00:01]} 6. a4 {[%emt 0:00:07]} b6 {[%emt 0:00:05]} 7. Bd3 {[%emt 0:00:09] B06: Modern Defence.} Bb7 {[%emt 0:00:01] [#]} 8. Nce2 $146 {[%emt 0:00:10]} ({Predecessor:} 8. f4 e6 9. Nf3 Ne7 10. O-O c5 11. dxc5 Nxc5 12. b4 Nxd3 13. cxd3 O-O 14. Bd4 {0-1 (80) Muzychuk,M (2526)-Harika,D (2492) Sochi 2015}) 8... Ngf6 {[%emt 0:00:05]} 9. f3 {[%emt 0:00:08] The position is equal.} e5 {[%emt 0:00:13]} 10. d5 $1 {[%emt 0:00:08]} c6 {[%emt 0:00:02]} 11. dxc6 {[%emt 0:00:09]} Bxc6 {[%emt 0:00:01]} 12. Bc4 {[%emt 0:00:08] Inhibits d5.} Qc7 {[%emt 0:00:27]} 13. Nc3 {[%emt 0:00:05]} O-O $1 {[%emt 0:00:23][%cal Ob6b5]} 14. Nge2 {[%emt 0:00:06] Against b5} (14. O-O-O {feels hotter.} Bxe4 15. Ba2 d5 16. Nge2) 14... Bxe4 {[%emt 0:00:44]} 15. Bxf7+ $1 {[%emt 0:00:01]} Rxf7 {[%emt 0:00:01]} 16. fxe4 {[%emt 0:00:04]} Qc6 {[%emt 0:00:38]} 17. O-O-O {[%emt 0:00:04]} Nxe4 {[%emt 0:00:03]} (17... Ng4 {looks sharper.} 18. Rhf1 Ndf6 19. h3 Nxe3 20. Qxe3 b5) 18. Nxe4 {[%emt 0:00:01]} Qxe4 {[%emt 0:00:01]} 19. Nc3 {[%emt 0:00:00]} Qb7 {[%emt 0:00:10]} 20. Qxd6 {[%emt 0:00:11]} Qxg2 {[%emt 0:00:03][%cal Ob6b5]} (20... b5 {simplifies} 21. Rhf1 Nf6 22. Rf2 Bf8) 21. Qe6 {[%emt 0:00:16] Inhibits b5.} Nf6 {[%emt 0:00:29][%cal Ob6b5]} 22. Bxb6 {[%emt 0:00:09]} Re8 {[%emt 0:00:00]} 23. Qc4 {[%emt 0:00:07]} Bh6+ {[%emt 0:00:06]} 24. Kb1 Qb7 {[%emt 0:00:02]} 25. a5 {[%emt 0:00:18]} Kg7 {[%emt 0:00:02]} 26. Rhf1 {[%emt 0:00:01]} Bf4 {[%emt 0:00:01]} 27. Rd6 {[%emt 0:00:10]} Rc8 {[%emt 0:00:04] Prevents Rc6.} 28. Qe2 {[%emt 0:00:08] [#] White is more active.} ({Better is} 28. Qe6 $1 $16 {[%cal Of1f4] aiming for Rxf4!} Re8 29. Qh3) 28... Rd7 $2 {[%emt 0:00:02] [#]} (28... Rxc3 $1 $15 {keeps the upper hand.} 29. bxc3 (29. Rxf6 Rxf6) 29... Ne4) 29. Rxd7+ $1 $18 {[%emt 0:00:07]} Nxd7 {[%emt 0:00:01] [#]} 30. Rxf4 $1 {[%emt 0:00:05]} exf4 {[%emt 0:00:06]} (30... Rxc3 {is tougher.} 31. Bd4 Rc5) 31. Qe7+ {[%emt 0:00:01]} Kh6 {[%emt 0:00:03]} 32. Qh4+ $2 {[%emt 0:00:03]} ({White must play} 32. Bd4 $18 {[%cal Re7h4]} Qf3 33. Qxd7 Qh1+ 34. Ka2) 32... Kg7 $11 {[%emt 0:00:01]} 33. Qe7+ $2 {[%emt 0:00:06][%mdl 8192]} (33. Bd4+ $11 Kf8 34. Qxh7 (34. Qxf4+ Kg8 $11) 34... Qh1+ 35. Ka2) 33... Kh6 $1 $18 {[%emt 0:00:01]} (33... Kg8 $2 34. Bd4 $18) 34. Qh4+ $2 {[%emt 0:00:15]} (34. Bd4 $18 {[%cal Re7h4]} Qf3 35. Qxd7 Qh1+ 36. Ka2) 34... Kg7 $11 {[%emt 0:00:01]} 35. Bd4+ $40 {[%emt 0:00:01][%mdl 192] Deflection. Black needs to defend precisely.} Kf8 $1 {[%emt 0:00:00]} 36. Qxh7 {[%emt 0:00:03] And now Qg7+ would win. Chess con chili.} Rxc3 $4 {[%emt 0:00:08][%mdl 8192] Black is now going downhill.} 37. Qg7+ {[%emt 0:00:07]} (37. Bxc3 Qh1+ 38. Ka2 Qd5+ 39. Ka3 Qf7 40. Bb4+ Ke8 41. Qh8+ Nf8 42. Qe5+ Ne6 43. Qb8+ Nd8 $18) 37... Ke8 {[%emt 0:00:00]} 38. Qxg6+ {[%emt 0:00:01]} (38. Bxc3 Qh1+ 39. Ka2 Qe4 $16) 38... Ke7 {[%emt 0:00:02] White must now prevent ...Qh1+.} 39. Qg5+ {[%emt 0:00:04]} Ke6 {[%emt 0:00:02] Hoping for ...Rf3.} 40. Qg4+ {[%emt 0:00:02]} ({Less strong is} 40. Bxc3 Qh1+ 41. Ka2 Qd5+ 42. Qxd5+ Kxd5 $18) 40... Ke7 {[%emt 0:00:04]} 41. Qg5+ {[%emt 0:00:01]} Ke6 $1 {[%emt 0:00:01] Threatens to win with ...Rf3.} 42. Qg4+ {[%emt 0:00:06]} ({Weaker is} 42. Bxc3 Qh1+ 43. Ka2 Qd5+ 44. Qxd5+ Kxd5 $18) 42... Ke7 43. Bxc3 $18 {[%emt 0:00:00][%mdl 4096] Endgame KQB-KQN} Qh1+ {[%emt 0:00:03]} 44. Ka2 {[%emt 0:00:01]} Qe4 {[%emt 0:00:02]} 45. h4 {[%emt 0:00:06]} Ne5 $2 {[%emt 0:00:04]} (45... Nc5 46. Qg7+ Ke8) 46. Qg5+ {[%emt 0:00:02]} Ke6 47. Qg8+ {[%emt 0:00:04]} Ke7 {[%emt 0:00:05]} 48. Qg7+ {[%emt 0:00:08]} Ke6 {[%emt 0:00:00]} 49. Qh6+ {[%emt 0:00:02]} Ke7 {[%emt 0:00:05]} 50. Qxa6 {[%emt 0:00:02]} f3 {[%emt 0:00:01]} 51. Qa7+ {[%emt 0:00:02]} Ke6 {[%emt 0:00:01]} 52. Qb6+ {[%emt 0:00:05]} Kf5 {[%emt 0:00:02]} 53. a6 $2 {[%emt 0:00:03]} (53. Bxe5 $18 {Intending Qf6+ and mate.} Kxe5 54. a6 Qc4+ 55. Ka3) 53... Qxc2 $2 {[%emt 0:00:03][%mdl 8192]} (53... Qc4+ $11 54. Kb1 Qf1+ 55. Ka2 Qc4+ 56. Kb1 Qf1+ 57. Ka2 Qc4+) 54. Qa5 {[%emt 0:00:02]} (54. Qb5 $142 Qe4 55. a7) 54... Qe4 {[%emt 0:00:03]} 55. a7 {[%emt 0:00:02] White mates.} f2 {[%emt 0:00:02]} 56. a8=Q {[%emt 0:00:01]} ({And not} 56. a8=B Qc4+ 57. Ka3 f1=Q $11) 56... Qc4+ {[%emt 0:00:03]} 57. Ka3 {[%emt 0:00:04]} f1=Q {[%emt 0:00:02]} 58. Qxe5+ {[%emt 0:00:01]} Kg4 59. Qee4+ {[%emt 0:00:11]} Kh3 {[%emt 0:00:02]} 60. Qxc4 Qxc4 {[%emt 0:00:03]} 61. Qh1+ {[%emt 0:00:05]} Kg4 {[%emt 0:00:01]} 62. Qg1+ {[%emt 0:00:01]} Kh3 {[%emt 0:00:01]} 63. Qe3+ {[%emt 0:00:02]} Kh2 {[%emt 0:00:02]} 64. Be5+ {[%emt 0:00:02]} Kh1 {[%emt 0:00:03]} 65. Qh3+ {[%emt 0:00:06]} Kg1 {[%emt 0:00:01]} 66. Qg3+ {[%emt 0:00:02]} Kf1 {[%emt 0:00:01]} 67. Qf4+ {[%emt 0:00:01] Weighted Error Value: White=0.69/Black=0.46} 1-0

[Event "4th Tata Steel India Blitz Open 2022"]
[Site "Kolkota"]
[Date "2022.12.04"]
[Round "15.4"]
[White "Mamedyarov, Shakhriyar"]
[Black "Erigaisi Arjun"]
[Result "0-1"]
[ECO "D45"]
[WhiteElo "2741"]
[BlackElo "2718"]
[Annotator "TA"]
[PlyCount "78"]
[EventDate "2022.11.29"]
[EventType "tourn"]
[EventCountry "IND"]
[SourceTitle "playchess.com"]
[Source "ChessBase"]
[SourceQuality "1"]
[TimeControl "180+2"]

{[%evp 18,78,12,10,27,8,37,0,0,0,25,-18,0,-55,-41,-68,-66,-79,-77,-104,-105,-95,-18,-21,-13,-32,0,0,0,0,0,0,0,0,69,62,110,33,48,0,0,0,0,0,0,0,0,0,0,0,0,8,12,0,0,0,0,-325,-300,-333,0,-1290,-1202]} 1. c4 {[%emt 0:00:00]} e6 {[%emt 0:00:02]} 2. Nf3 {[%emt 0:00:07]} d5 {[%emt 0:00:02]} 3. e3 {[%emt 0:00:04]} Nf6 {[%emt 0:00:02]} 4. b3 {[%emt 0:00:04]} Bd6 {[%emt 0:00:10]} 5. Bb2 {[%emt 0:00:02]} O-O {[%emt 0:00:03]} 6. Nc3 {[%emt 0:00:02]} c6 {[%emt 0:00:07]} 7. d4 {[%emt 0:00:05]} Nbd7 {[%emt 0:00:06]} 8. Be2 {[%emt 0:00:04]} Ne4 {[%emt 0:00:04]} 9. O-O {[%emt 0:00:17]} f5 {[%emt 0:00:02]} 10. Qc2 {[%emt 0:00:00]} Qf6 {[%emt 0:00:07] D45: Semi-Slav: 5 e3.} 11. a3 {[%emt 0:00:25] [#]} b6 $146 {[%emt 0:00:16][%cal Bb7b6,Bb6b5][%mdl 32]} (11... Qh6 {looks sharper.} 12. h3 b6 13. b4 Bb7) ({Predecessor:} 11... Nxc3 12. Qxc3 Bc7 13. Rae1 Qh6 14. Ne5 Nxe5 15. dxe5 f4 16. Bc1 g5 17. exf4 gxf4 {1-0 (58) Kaciusis,D (1706)-Gonzalez Martinez,F (1489) Montevideo 2022}) 12. b4 {[%emt 0:00:15]} Bb7 {[%emt 0:00:12] The position is equal.} 13. Rac1 {[%emt 0:00:02]} Rae8 {[%emt 0:00:08]} 14. Qa4 {[%emt 0:00:16]} a6 {[%emt 0:00:15]} 15. cxd5 {[%emt 0:00:03]} (15. Qc2 $11) 15... b5 $15 {[%emt 0:00:01]} 16. Qb3 {[%emt 0:00:16] Strongly threatening Nxe4.} exd5 {[%emt 0:00:03]} (16... cxd5 17. a4 $11) 17. g3 {[%emt 0:00:26]} Nb6 {[%emt 0:00:23]} 18. Nxe4 {[%emt 0:00:10]} fxe4 {[%emt 0:00:02]} 19. Ne5 {[%emt 0:00:00]} Rc8 {[%emt 0:00:27]} (19... Qh6 $17 20. Nxc6 Bxg3 $1 21. Ne7+ Rxe7 22. fxg3 Ref7 23. Rxf7 Rxf7) 20. f3 {[%emt 0:00:07]} exf3 $1 {[%emt 0:00:02]} 21. Bxf3 {[%emt 0:00:01]} Bxe5 {[%emt 0:00:17]} (21... Qg5 {feels hotter.} 22. e4 Bxe5 23. dxe5 Nc4) 22. dxe5 {[%emt 0:00:01]} Qe6 {[%emt 0:00:02]} 23. Bd4 {[%emt 0:00:21]} Nc4 {[%emt 0:00:01]} 24. Qc3 {[%emt 0:00:01] Inhibits Nd2.} Rce8 {[%emt 0:00:09]} 25. Bh5 {[%emt 0:00:01] A strong pair of Bishops.} Rd8 {[%emt 0:00:11]} (25... g6 $11 26. Rxf8+ Rxf8) 26. Rf4 $14 {[%emt 0:00:04]} Qh6 {[%emt 0:00:08]} (26... Bc8 $14 {is superior.}) 27. Bg4 {[%emt 0:00:06]} (27. Rh4 $16 {[%cal Oh5f7] Bf7+! is the strong threat.} Bc8 {[#]} 28. Bf7+ $1 Rxf7 29. Rxh6 gxh6 30. Bc5) 27... Bc8 {[%emt 0:00:02]} 28. e6 {[%emt 0:00:01]} (28. Be2 $14 {might be stronger.}) 28... Bxe6 $11 {[%emt 0:00:12]} 29. Bxe6+ {[%emt 0:00:05]} Qxe6 {[%emt 0:00:02]} 30. Bxg7 {[%emt 0:00:01]} Rxf4 {[%emt 0:00:04] Active counter play!} 31. exf4 {[%emt 0:00:01]} Qe3+ {[%emt 0:00:07]} 32. Qxe3 {[%emt 0:00:03]} Nxe3 {[%emt 0:00:01][%mdl 4096] Endgame KRB-KRN} 33. Bf6 {[%emt 0:00:12]} Rd6 {[%emt 0:00:01]} 34. Bd4 {[%emt 0:00:04]} Nc4 {[%emt 0:00:02][%cal Be3c4,Bc4a3,Ba3c2,Bc2a1][%mdl 32]} 35. Re1 {[%emt 0:00:02]} Kf7 {[%emt 0:00:01][%cal Oa6a5] Prevents Re7+.} 36. f5 {[%emt 0:00:01] Against a5} Nxa3 {[%emt 0:00:07]} 37. Ra1 $2 {[%emt 0:00:04][%mdl 8192]} (37. Re2 $11 {and White is okay.}) 37... Nc2 $1 $19 {[%emt 0:00:02][%csl LRa1,LRb4,LRd4]} 38. Bc5 {[%emt 0:00:03] Hoping for Rc1.} Rd7 $2 {[%emt 0:00:02]} (38... Nxa1 $19 39. Bxd6 Nb3) 39. Kf2 $2 {[%emt 0:00:07][%mdl 8192]} Nxa1 {[%emt 0:00:01] Weighted Error Value: White=0.49/Black=0.25 (precise)} 0-1

[Event "4th Tata Steel India Blitz Open 2022"]
[Site "Kolkota"]
[Date "2022.12.04"]
[Round "15.5"]
[White "Maghsoodloo, Parham"]
[Black "Nakamura, Hikaru"]
[Result "1-0"]
[ECO "D35"]
[WhiteElo "2720"]
[BlackElo "2768"]
[Annotator "TA"]
[PlyCount "105"]
[EventDate "2022.11.29"]
[EventType "tourn"]
[EventCountry "IND"]
[SourceTitle "playchess.com"]
[Source "ChessBase"]
[SourceQuality "1"]
[TimeControl "180+2"]

{[%evp 13,105,0,5,0,2,-11,-12,-5,-2,-6,-6,-6,0,0,95,0,0,0,7,0,14,0,0,-4,-14,-23,39,39,39,47,64,23,23,17,31,16,14,16,113,93,302,318,626,635,593,578,533,75,126,110,137,143,139,146,222,137,200,200,190,188,268,274,245,197,270,275,408,346,347,344,1039,1057,918,827,1057,284,747,733,1083,935,5077,4979,2412,1666,29968,29970,29972,29970,29972,29975,29980,29981,29984,29985]} 1. d4 {[%emt 0:00:01]} Nf6 {[%emt 0:00:01]} 2. c4 {[%emt 0:00:01]} e6 {[%emt 0:00:01]} 3. Nf3 {[%emt 0:00:01]} d5 {[%emt 0:00:00]} 4. Nc3 {[%emt 0:00:02]} Be7 {[%emt 0:00:01]} 5. cxd5 {[%emt 0:00:01]} exd5 {[%emt 0:00:01]} 6. Bf4 {[%emt 0:00:01]} c6 {[%emt 0:00:00]} 7. e3 {[%emt 0:00:01]} Bf5 {[%emt 0:00:01]} 8. Nh4 $1 {[%emt 0:00:02][%mdl 4] is recently more successful than 8.Bd3. D35: Queen's Gambit Declined: Exchange Variation.} Bg4 {[%emt 0:00:14]} 9. Qc2 {[%emt 0:00:01]} (9. Be2 {simplifies} Bxe2 10. Qxe2 Qd7 11. O-O) 9... Nh5 {[%emt 0:00:14]} 10. h3 {[%emt 0:00:01] [#] The position is equal.} Bc8 $146 {[%emt 0:00:07]} ({Predecessor:} 10... Be6 11. Nf3 Nxf4 12. exf4 g6 13. Bd3 Qd6 14. Ne2 Nd7 15. O-O Nf6 16. Ne5 Nd7 {1-0 (100) Warmerdam,M (2613)-Michalik,P (2577) Prague 2022}) 11. Nf3 {[%emt 0:00:01]} Nxf4 {[%emt 0:00:10]} 12. exf4 {[%emt 0:00:02]} Bd6 {[%emt 0:00:00]} 13. g3 {[%emt 0:00:01]} Na6 {[%emt 0:00:27]} (13... Qe7+ $11 14. Be2 Nd7) 14. a3 {[%emt 0:00:05]} (14. Bxa6 $16 {Hoping for Bd3.} bxa6 15. Nxd5 $1 {[%mdl 512]} Qa5+ 16. Nc3) 14... O-O {[%emt 0:00:06]} 15. Bd3 {[%emt 0:00:01] Active counter play!} Re8+ {[%emt 0:00:04]} 16. Kf1 {[%emt 0:00:02]} (16. Ne5 {looks sharper.} h6 17. Kf1 Nc7 18. Kg2) 16... g6 {[%emt 0:00:04]} 17. Kg2 {[%emt 0:00:05]} Nc7 {[%emt 0:00:07]} 18. h4 {[%emt 0:00:02]} Bg4 {[%emt 0:00:18] Inhibits h5.} 19. Ne5 {[%emt 0:00:05]} Bxe5 {[%emt 0:00:01]} (19... Bh5 $1 $11) 20. dxe5 $14 {[%emt 0:00:02]} Ne6 {[%emt 0:00:01][%cal Og4f3]} 21. Ne2 $1 {[%emt 0:00:18]} c5 {[%emt 0:00:22] aiming for ...c4.} 22. f3 {[%emt 0:00:15] Prevents c4.} Bxf3+ {[%emt 0:00:01]} 23. Kxf3 {h5 is the strong threat.} c4 {Against h5} 24. Bxg6 {[%emt 0:00:08]} hxg6 {[%emt 0:00:06]} 25. Rad1 {[%emt 0:00:06]} Qb6 {[%emt 0:00:13]} (25... Rc8 $11) 26. h5 $16 {[%emt 0:01:20]} (26. Rxd5 $2 Qc6 27. Rhd1 Nc7 $17) 26... d4 $2 {[%emt 0:00:14]} (26... g5 $16) 27. hxg6 $18 {[%emt 0:00:02]} (27. Qxc4 Rac8 28. Qb4 Qc6+ 29. Kf2 Qe4 $14) 27... d3 $2 {[%emt 0:00:00]} (27... Qc6+ 28. Qe4 d3) 28. gxf7+ {[%emt 0:00:02]} Kxf7 {[%emt 0:00:02]} 29. Qxc4 {[%emt 0:00:03]} dxe2 {[%emt 0:00:02]} 30. Rd7+ {[%emt 0:00:16]} (30. Rd6 $18 {is the precise move to win. Threatens to win with f5.} Qxb2 31. Qd3 (31. Qxe2 Nd4+ 32. Rxd4 Qxd4 $11) 31... e1=N+ 32. Rxe1) 30... Kg8 {[%emt 0:00:01]} (30... Re7 $142 31. Rxe7+ Kxe7) 31. Rd6 {[%emt 0:00:04] Dancing on a razor blade.} (31. Kxe2 $6 Rac8 32. Qe4 (32. Qd3 $2 Qxb2+ 33. Kf3 Rc3 $19) 32... Qb5+ 33. Rd3 Qxb2+ 34. Kf3 (34. Rd2 Qb5+ 35. Kf3 Nf8 $11) 34... Nf8 $11) 31... Qc7 {[%emt 0:00:05]} 32. Qxc7 {[%emt 0:00:05]} (32. Qxe2 $2 {is the wrong capture.} Qxd6 $3 $19 {[%mdl 512]}) 32... Nxc7 {[%emt 0:00:01]} 33. Kxe2 {[%emt 0:00:02]} Re7 {[%emt 0:00:04]} (33... Ne6 $16 34. Rd7 b6) 34. Rhd1 {[%emt 0:00:02]} Rae8 {[%emt 0:00:02]} (34... Ne6 $16 35. Ke3 (35. f5 Ng7 $11) 35... Nf8) 35. Rd7 {[%emt 0:00:01]} Ne6 {[%emt 0:00:08]} 36. Kf3 {[%emt 0:00:05]} Nc5 {[%emt 0:00:03]} (36... Nf8 {keeps fighting.} 37. Rxe7 Rxe7) 37. Rxe7 {[%emt 0:00:02]} Rxe7 {[%emt 0:00:00][%mdl 4096] Endgame KRN-KR} 38. Rd4 {[%emt 0:00:02]} a6 {[%emt 0:00:03]} (38... Kf7 $142 39. g4 b6) 39. g4 {[%emt 0:00:02]} b5 {[%emt 0:00:01]} (39... Ne6 {was worth a try.} 40. Rd6 Kf8) 40. g5 {[%emt 0:00:02]} Ne6 {[%emt 0:00:03]} 41. Rd6 {[%emt 0:00:04]} Nxg5+ $2 {[%emt 0:00:31]} (41... b4 42. Rxa6 bxa3 43. bxa3 Kf7) 42. fxg5 {[%emt 0:00:02]} Rxe5 {[%emt 0:00:01]} 43. Rxa6 {[%emt 0:00:03]} Rxg5 {[%emt 0:00:01] KR-KR} 44. Kf4 $2 {[%emt 0:00:02]} (44. Ke3 Kf7 45. Rd6) 44... Rg2 $2 {[%emt 0:00:06] [#]} (44... Rh5 45. Kg4 Rc5) 45. b4 $1 {[%emt 0:00:02]} Rh2 {[%emt 0:00:09]} 46. Ra5 {[%emt 0:00:12]} Rh3 {[%emt 0:00:01]} 47. Ke5 {[%emt 0:00:01]} Kf7 {[%emt 0:00:01]} 48. Kd6 {[%emt 0:00:01]} (48. Rxb5 $2 {loses.} Rh5+ 49. Kd6 Rxb5 $19) 48... Rc3 {[%emt 0:00:02]} 49. Rxb5 {[%emt 0:00:06] White mates.} Rxa3 {[%emt 0:00:01]} 50. Re5 {[%emt 0:00:15]} Kf6 {[%emt 0:00:03]} 51. b5 {[%emt 0:00:02][%cal Bb4b5,Bb5b6][%mdl 32]} Ra5 {[%emt 0:00:04]} 52. Rc5 {[%emt 0:00:02]} Kf7 {[%emt 0:00:03]} 53. b6 {[%emt 0:00:02] Weighted Error Value: White=0.39/Black=0.55} 1-0

[Event "4th Tata Steel India Blitz Open 2022"]
[Site "Kolkota"]
[Date "2022.12.04"]
[Round "16.1"]
[White "Erigaisi Arjun"]
[Black "Maghsoodloo, Parham"]
[Result "0-1"]
[ECO "A34"]
[WhiteElo "2718"]
[BlackElo "2720"]
[Annotator "TA"]
[PlyCount "123"]
[EventDate "2022.11.29"]
[EventType "tourn"]
[EventCountry "IND"]
[SourceTitle "playchess.com"]
[Source "ChessBase"]
[SourceQuality "1"]
[TimeControl "180+2"]

{[%evp 17,123,20,16,21,42,26,29,41,40,30,36,28,57,24,22,29,32,30,34,27,36,10,16,24,24,0,8,0,26,9,39,26,27,-158,28,23,26,29,13,16,27,27,45,43,148,63,153,143,144,27,37,28,29,-25,48,15,25,29,125,119,114,116,137,137,133,109,107,104,119,119,150,145,148,0,0,-62,-41,-705,-684,-618,0,-526,-523,-495,-482,-670,-570,-1035,-1032,-998,-594,-577,-559,-452,-378,-465,-454,-468,-445,-444,-289,-741,-755,-681,-622,-1040,-1030,-1021]} 1. Nf3 {[%emt 0:00:01]} c5 {[%emt 0:00:02]} 2. c4 {[%emt 0:00:02]} Nc6 {[%emt 0:00:01]} 3. Nc3 {[%emt 0:00:01]} e5 {[%emt 0:00:03]} 4. e3 {[%emt 0:00:03]} Nf6 {[%emt 0:00:01]} 5. d4 {[%emt 0:00:02]} cxd4 {[%emt 0:00:02]} 6. exd4 {[%emt 0:00:02]} e4 {[%emt 0:00:00]} 7. Ne5 {[%emt 0:00:03]} Bb4 {[%emt 0:00:02]} 8. Be2 {[%emt 0:00:09]} Qa5 {[%emt 0:00:01]} 9. Nxc6 {[%emt 0:00:03]} dxc6 {[%emt 0:00:01]} 10. Bd2 {[%emt 0:00:05] A34: Symmetrical English: 2 Nc3, lines with ...d5.} O-O {[%emt 0:00:13]} 11. O-O {[%emt 0:00:07]} Rd8 {[%emt 0:00:09]} 12. a3 {[%emt 0:00:09] White has an edge.} Bxc3 {[%emt 0:00:01]} 13. Bxc3 {[%emt 0:00:01]} Qg5 {[%emt 0:00:01]} 14. Qc1 {[%emt 0:00:01] [#]} Qh4 $5 $146 {[%emt 0:00:06][%mdl 8] New and interesting.} ({Predecessor:} 14... Qg6 15. Re1 Bg4 16. Bf1 Re8 17. Qe3 Rad8 18. Kh1 Bc8 19. h3 Nh5 20. g4 Nf6 {½-½ (46) Medvegy,Z (2522)-Galyas,M (2477) Balatonalmadi 2010}) 15. Qe3 {[%emt 0:00:07]} Bg4 {[%emt 0:00:02]} 16. Rae1 {[%emt 0:00:06] White wants to play Qf4.} Bxe2 {[%emt 0:00:03]} 17. Rxe2 {[%emt 0:00:02]} h6 {[%emt 0:00:26]} (17... Ng4 $2 18. Qf4 f5 19. h3 $18 (19. Qxf5 $2 Qxh2#)) 18. Rfe1 {[%emt 0:00:27]} (18. Rd1 {feels hotter.} b5 19. d5 bxc4 20. g3) 18... b5 {[%emt 0:00:22]} 19. b3 {[%emt 0:00:34]} bxc4 {[%emt 0:00:03]} 20. bxc4 {[%emt 0:00:01]} Rab8 {[%emt 0:00:01]} 21. Bb4 {[%emt 0:00:07]} Rd7 {[%emt 0:00:02]} 22. h3 {[%emt 0:00:11]} Rbb7 {[%emt 0:00:28]} 23. Rd2 {[%emt 0:00:05]} Qh5 {[%emt 0:00:02]} 24. Qc3 {[%emt 0:00:14]} Qg5 {[%emt 0:00:11]} 25. Re3 $2 {[%emt 0:00:03]} (25. Qc2 $11) 25... Qf4 $2 {[%emt 0:00:13] Black is more active.} ({Black should try} 25... a5 $1 $17 {[%cal Ra5b4]} 26. Bxa5 Rb1+ 27. Kh2 Qf4+ 28. Rg3 Nh5) 26. Rd1 {[%emt 0:00:09]} Qf5 {[%emt 0:00:19]} 27. Qe1 {[%emt 0:00:03]} Qe6 {[%emt 0:00:04]} 28. Qe2 {[%emt 0:00:04] Black should prevent f3.} Qf5 {[%emt 0:00:04]} 29. Qc2 {[%emt 0:00:06]} Qg5 {[%emt 0:00:14]} 30. Bc3 {[%emt 0:00:04][%cal Od4d5]} Qf5 {[%emt 0:00:09] [#]} (30... Rdc7 $14) 31. Rde1 {[%emt 0:00:04]} (31. f3 $1 $16) 31... Qe6 {[%emt 0:00:02] [#]} (31... Qg6 $1 $14) 32. Ba1 $1 $16 {[%emt 0:00:07]} Qd6 {[%emt 0:00:09]} 33. Qe2 {[%emt 0:00:18]} (33. f3 $16) 33... Rd8 {[%emt 0:00:05]} 34. Rg3 {[%emt 0:00:09]} Rdb8 {[%emt 0:00:02]} 35. Qc2 {[%emt 0:00:03] Against Rb1} ({Better is} 35. d5 cxd5 36. cxd5) 35... a5 {[%emt 0:00:10]} (35... Nh5 $1 $11 36. Rge3 f5) 36. d5 {[%emt 0:00:02]} cxd5 {[%emt 0:00:02]} 37. cxd5 {[%emt 0:00:01]} Rb6 {[%emt 0:00:03]} (37... Rc7 $11 38. Qe2 Rbb7) 38. Bxf6 {[%emt 0:00:06]} Qxf6 {[%emt 0:00:01]} 39. Qxe4 {[%emt 0:00:01]} Rb2 {[%emt 0:00:08]} 40. Rf3 {[%emt 0:00:01]} Qd6 {[%emt 0:00:03]} 41. Qf5 {[%emt 0:00:02]} Rf8 {[%emt 0:00:05]} 42. g3 {[%emt 0:00:02]} Ra2 {[%emt 0:00:03]} 43. Ree3 {[%emt 0:00:08]} Qa6 {[%emt 0:00:03]} 44. Kg2 {[%emt 0:00:03][%cal Oe3e8]} Ra1 {[%emt 0:00:02]} 45. Rd3 {[%emt 0:00:03]} (45. Qd3 $16 Qc8 46. Qc3 Qxc3 47. Rxc3) 45... Qc4 $11 {[%emt 0:00:01]} (45... Qb5 $5 46. Rfe3 $8 Qb1 $11) 46. Qf4 {[%emt 0:00:07]} (46. Rfe3 $1 $11) 46... Qc2 $40 {[%emt 0:00:02][%mdl 1152] Black has compensation. White needs to defend precisely.} 47. Rfe3 $2 {[%emt 0:00:02][%mdl 8192] Black continues to play with concentration.} (47. g4 $15) 47... Qb1 {[%emt 0:00:02][%csl Ga1][%cal Rb1h1]} 48. Kf3 {[%emt 0:00:03]} h5 $2 {[%emt 0:00:01]} (48... Qf1 49. Qd4 $11 (49. Kg4 $2 f5+ $19)) (48... Qh1+ $19 49. Kg4 f5+ 50. Qxf5 Rxf5 51. Kxf5 Qxh3+ 52. Ke4 Qg2+ 53. Rf3 Qf1) 49. Qd6 $2 {[%emt 0:00:03][%mdl 8192]} (49. Qe5 $11 {and White stays safe.}) 49... Qh1+ $19 {[%emt 0:00:03]} 50. Kf4 {[%emt 0:00:01]} Qxh3 {[%emt 0:00:00]} 51. Ke4 {[%emt 0:00:00]} Qg2+ {[%emt 0:00:00]} 52. f3 {[%emt 0:00:04]} Rc1 {[%emt 0:00:00] ( -> ...Rc4+)} ({Weaker is} 52... Qc2 53. Qc6 Qb1 54. Kf4 $15) 53. Kf4 {[%emt 0:00:02]} Rg1 {[%emt 0:00:00][%cal Bc1g1,Bg1g3,Bg3g5,Bg5f5][%mdl 32]} 54. Kf5 {[%emt 0:00:02]} Qh3+ {[%emt 0:00:00]} (54... Qxg3 55. Qxg3 Rxg3 56. d6 $18) 55. Ke4 {[%emt 0:00:01]} Rxg3 {[%emt 0:00:00]} 56. Rc3 {[%emt 0:00:02]} Rg5 {[%emt 0:00:00]} 57. Kd4 {[%emt 0:00:02]} g6 {[%emt 0:00:00]} 58. f4 {[%emt 0:00:03]} Qg4 {[%emt 0:00:05]} 59. Rg3 $2 {[%emt 0:00:02]} (59. Kc5 Rf5 60. Rg3 Rc8+ 61. Kb6 Rxc3 62. Rxc3 Qg1+ 63. Ka6) 59... Qd1+ {[%emt 0:00:01] Black is clearly winning.} ({Not} 59... Qxg3 60. Rxg3 Rxg3 61. Qe7 $11) 60. Rgd3 {[%emt 0:00:02]} Qg1+ {[%emt 0:00:02]} 61. Re3 {[%emt 0:00:01]} Rf5 {[%emt 0:00:04] Strongly threatening ...Re8.} 62. Kc4 {[%emt 0:00:02] Weighted Error Value: White=0.66/Black=0.42} 0-1